bitfinex/quotes_BTCUSD_20230118
["timestamp","ask_amount","ask_price","bid_price","bid_amount"]
[1674005937869,2.17644396,21220.0,21215.0,0.73400549]
[1674005937870,0.111,21218.0,21215.0,0.73400549]
[1674005938118,0.321465,21217.0,21216.0,6.333e-05]
[1674005938375,0.111,21218.0,21216.0,6.333e-05]
[1674005938678,1.52202268,21218.0,21214.0,0.471366]
[1674005938880,0.321465,21217.0,21215.0,0.471354]
[1674005939134,1.05071468,21218.0,21214.0,0.471367]
[1674005939392,1.44610734,21218.0,21214.0,0.471367]
[1674005939655,0.321465,21217.0,21215.0,6.333e-05]
[1674005939930,0.57941368,21218.0,21215.0,0.47141833]
[1674005940144,0.091,21217.0,21215.0,0.47141833]
[1674005940390,0.57941368,21218.0,21215.0,0.47141833]
[1674005940647,0.67041368,21218.0,21215.0,0.47141833]
[1674005940896,0.67041368,21218.0,21215.0,0.94278233]
[1674005941169,1.61301268,21218.0,21215.0,6.333e-05]
[1674005941411,0.321465,21217.0,21214.0,0.942734]
[1674005941669,0.19072595,21217.0,21214.0,0.471366]
[1674005941925,1.72670539,21218.0,21214.0,0.471366]
[1674005942211,0.3219419,21217.0,21214.0,0.471366]
[1674005942496,0.0004769,21217.0,21215.0,6.333e-05]
[1674005942743,0.0914769,21217.0,21215.0,0.96087067]
[1674005943001,0.0004769,21217.0,21215.0,0.96087067]
[1674005943537,0.57941368,21218.0,21215.0,0.960934]
[1674005943812,0.0004769,21217.0,21215.0,0.489575]
[1674005944074,0.57941368,21218.0,21215.0,0.48951167]
[1674005944340,0.091,21217.0,21215.0,0.48951167]
[1674005944609,1.05071468,21218.0,21216.0,6.333e-05]
[1674005944876,0.092,21218.0,21216.0,6.333e-05]
[1674005945187,0.092,21218.0,21216.0,0.471336]
[1674005945707,0.15,21219.0,21216.0,0.47139933]
[1674005945983,1.9046022,21220.0,21216.0,0.94274133]
[1674005945984,0.092,21218.0,21216.0,0.94274133]
[1674005947618,0.40981865,21220.0,21217.0,0.051998]
[1674005948119,0.092,21219.0,21218.0,0.471297]
[1674005948121,0.41029555,21220.0,21218.0,0.471297]
[1674005948915,0.50229555,21220.0,21218.0,0.471297]
[1674005949177,0.41029555,21220.0,21218.0,0.471297]
[1674005949429,0.50229555,21220.0,21218.0,0.471297]
[1674005954008,0.61221865,21220.0,21218.0,0.471297]
[1674005956689,0.321465,21216.0,21215.0,0.01816567]
[1674005957474,0.0004769,21216.0,21215.0,0.01816567]
[1674005957724,0.0914769,21216.0,21215.0,0.01816567]
[1674005958957,0.091,21216.0,21215.0,0.01816567]
[1674005960227,0.091,21216.0,21215.0,0.48952967]
[1674005962294,0.090921,21216.0,21215.0,1.23479867]
[1674005962556,0.090921,21216.0,21215.0,1.62560143]
[1674005963076,0.090921,21216.0,21215.0,1.23479867]
[1674005963846,0.090921,21216.0,21215.0,1.92560143]
[1674005964623,0.090921,21216.0,21215.0,2.29862335]
[1674005964929,0.090921,21216.0,21215.0,2.9118581]
[1674005965153,0.090921,21216.0,21215.0,4.63268984]
[1674005966734,0.090921,21216.0,21215.0,4.63267303]
[1674005967780,0.090921,21216.0,21215.0,4.63265844]
[1674005968034,0.090921,21216.0,21215.0,4.63266216]
[1674005968292,0.090921,21216.0,21215.0,3.46483618]
[1674005969649,0.090921,21216.0,21215.0,2.3704575]
[1674005969929,0.090921,21216.0,21215.0,1.75722275]
[1674005970718,0.090921,21216.0,21215.0,2.75894943]
[1674005970984,0.090921,21216.0,21215.0,2.75895004]
[1674005971258,0.090921,21216.0,21215.0,2.75892085]
[1674005971712,0.090921,21216.0,21215.0,2.75886437]
[1674005971971,0.090921,21216.0,21215.0,2.14802551]
[1674005972762,0.090921,21216.0,21215.0,2.75884476]
[1674005973020,0.090921,21216.0,21215.0,2.31710857]
[1674005973286,0.090921,21216.0,21215.0,2.75884254]
[1674005974342,0.090921,21216.0,21215.0,2.31710857]
[1674005974600,0.090921,21216.0,21215.0,2.75882069]
[1674005975124,0.090921,21216.0,21215.0,2.46810762]
[1674005975389,0.090921,21216.0,21215.0,2.16810762]
[1674005975653,0.090921,21216.0,21215.0,0.9427856]
[1674005976724,0.090921,21216.0,21215.0,0.8324856]
[1674005976980,0.090921,21216.0,21215.0,0.7804806]
[1674005978308,0.090921,21216.0,21215.0,0.7457806]
[1674005978840,0.0913979,21216.0,21215.0,0.6701806]
[1674005980395,0.090921,21216.0,21215.0,0.7457806]
[1674005980649,0.090921,21216.0,21215.0,1.0457806]
[1674005980909,0.090921,21216.0,21215.0,1.0977856]
[1674005981168,0.090921,21216.0,21215.0,1.0457806]
[1674005982459,0.090921,21216.0,21215.0,1.04584393]
[1674005982716,0.090921,21216.0,21215.0,1.09784893]
[1674005984237,0.090921,21216.0,21215.0,1.04584393]
[1674005985983,0.090921,21216.0,21215.0,1.09784893]
[1674005986506,0.090921,21216.0,21215.0,1.04584393]
[1674005987276,0.090921,21216.0,21215.0,0.74584393]
[1674005988019,0.090921,21216.0,21215.0,0.79784893]
[1674005988281,0.090921,21216.0,21215.0,1.09784893]
[1674005989018,0.090921,21216.0,21215.0,1.68183701]
[1674005989661,0.090921,21216.0,21215.0,2.24249237]
[1674005989857,0.0118342,21221.0,21216.0,0.08134612]
[1674005990111,0.0118342,21221.0,21220.0,0.0756]
[1674005990375,0.0118342,21221.0,21220.0,1.62477085]
[1674005990633,0.0118342,21221.0,21220.0,1.541338]
[1674005990943,0.0118342,21221.0,21220.0,2.05194985]
[1674005991145,0.0118342,21221.0,21220.0,1.924538]
[1674005991661,0.0118342,21221.0,21220.0,1.916538]
[1674005991919,0.0118342,21221.0,21220.0,1.540938]
[1674005992419,0.0118342,21221.0,21220.0,1.848938]
[1674005993212,0.0118342,21221.0,21220.0,1.840938]
[1674005993480,0.0118342,21221.0,21220.0,1.932938]
[1674005993748,0.0118342,21221.0,21220.0,1.540938]
[1674005994006,0.0118342,21221.0,21220.0,1.932938]
[1674005994261,0.0118342,21221.0,21220.0,1.840938]
[1674005994535,0.0118342,21221.0,21220.0,1.932938]
[1674005995004,0.0118342,21221.0,21220.0,1.840938]
[1674005995005,0.0118342,21221.0,21220.0,1.932938]
[1674005995272,0.0118342,21221.0,21220.0,1.840938]
[1674005996314,0.0118342,21221.0,21220.0,1.932938]
[1674005996570,0.0118342,21221.0,21220.0,1.840938]
[1674005996829,0.0118342,21221.0,21220.0,1.932938]
[1674005997093,0.0118342,21221.0,21220.0,2.23146426]
[1674005998124,0.0118342,21221.0,21220.0,2.32346426]
[1674005998397,0.0118342,21221.0,21220.0,2.41546426]
[1674005998923,0.0118342,21221.0,21220.0,2.024938]
[1674005999440,0.01018867,21223.0,21220.0,2.024938]
[1674005999711,0.01018867,21223.0,21222.0,0.0756]
[1674005999994,0.01018867,21223.0,21222.0,0.127571]
[1674006000249,0.01018867,21223.0,21222.0,1.541198]
[1674006000515,0.01018867,21223.0,21222.0,1.841198]
[1674006001065,0.01018867,21223.0,21222.0,1.541198]
[1674006001347,0.01018867,21223.0,21222.0,1.634198]
[1674006002109,0.01018867,21223.0,21222.0,1.934198]
[1674006003234,0.01018867,21223.0,21222.0,1.858598]
[1674006003488,0.01018867,21223.0,21222.0,1.765598]
[1674006003760,0.01018867,21223.0,21222.0,1.857598]
[1674006006437,0.01018867,21223.0,21222.0,1.765598]
[1674006006702,0.01018867,21223.0,21222.0,1.841198]
[1674006006949,0.01018867,21223.0,21222.0,2.32372426]
[1674006007202,0.01018867,21223.0,21222.0,2.43636318]
[1674006007461,0.01018867,21223.0,21222.0,3.25003167]
[1674006007724,0.01018867,21223.0,21222.0,4.32153516]
[1674006008243,0.01018867,21223.0,21222.0,4.22953516]
[1674006008489,0.01018867,21223.0,21222.0,4.49005295]
[1674006008748,0.01018867,21223.0,21222.0,3.17423702]
[1674006008994,0.01018867,21223.0,21222.0,3.26623702]
[1674006009510,0.01018867,21223.0,21222.0,3.17423702]
[1674006009765,0.01018867,21223.0,21222.0,3.26623702]
[1674006010028,0.01024511,21225.0,21224.0,0.01682832]
[1674006010307,0.01024511,21225.0,21224.0,2.36750276]
[1674006010646,0.01024511,21225.0,21224.0,2.71946076]
[1674006011334,0.01024511,21225.0,21224.0,2.81266701]
[1674006015858,0.01024511,21225.0,21224.0,2.73706701]
[1674006016114,0.01024511,21225.0,21224.0,2.81256701]
[1674006017452,0.01024511,21225.0,21224.0,2.72056701]
[1674006017712,0.01024511,21225.0,21224.0,2.81256701]
[1674006017968,0.01024511,21225.0,21224.0,2.51256701]
[1674006018693,0.01024511,21225.0,21224.0,2.60456701]
[1674006019213,0.01024511,21225.0,21224.0,2.90456701]
[1674006019480,0.01024511,21225.0,21224.0,2.51404075]
[1674006021772,0.01024511,21225.0,21224.0,2.43854075]
[1674006022309,0.01024511,21225.0,21224.0,2.13854075]
[1674006023685,0.01024511,21225.0,21224.0,2.43854075]
[1674006028915,0.01024511,21225.0,21224.0,2.38658275]
[1674006029424,0.01024511,21225.0,21224.0,2.43854075]
[1674006029690,0.01024511,21225.0,21224.0,2.13854075]
[1674006029950,0.01024511,21225.0,21224.0,2.38658275]
[1674006030434,0.01024511,21225.0,21224.0,2.08658275]
[1674006030437,0.20144796,21225.0,21224.0,1.6142125]
[1674006030715,0.40728701,21225.0,21224.0,1.6142125]
[1674006030964,0.40728701,21225.0,21224.0,0.9590485]
[1674006031227,0.40681011,21225.0,21224.0,1.0510485]
[1674006031476,0.40681011,21225.0,21224.0,0.9590485]
[1674006031728,0.40681011,21225.0,21224.0,0.9660485]
[1674006035186,0.08534511,21225.0,21224.0,0.9660485]
[1674006035713,0.08582201,21225.0,21224.0,0.9590485]
[1674006035967,0.10134511,21225.0,21224.0,0.9600485]
[1674006036499,0.02624511,21225.0,21224.0,0.9600485]
[1674006037282,0.01024511,21225.0,21224.0,0.9910485]
[1674006037542,0.01024511,21225.0,21224.0,0.9590485]
[1674006037800,0.01024511,21225.0,21224.0,0.9910485]
[1674006038061,0.01024511,21225.0,21224.0,0.99110879]
[1674006040389,0.010138,21225.0,21224.0,0.99110879]
[1674006040633,0.010138,21225.0,21224.0,1.29110879]
[1674006043655,0.010138,21225.0,21224.0,1.45543562]
[1674006046383,0.010138,21225.0,21224.0,1.34306679]
[1674006046826,0.010138,21225.0,21224.0,1.45543562]
[1674006047567,0.010138,21225.0,21224.0,2.05624438]
[1674006048849,0.010138,21225.0,21224.0,1.94387555]
[1674006049117,0.010138,21225.0,21224.0,2.0564913]
[1674006049929,0.010138,21225.0,21224.0,2.05650278]
[1674006050194,0.010138,21225.0,21224.0,1.94388703]
[1674006050460,0.010138,21225.0,21224.0,2.05650748]
[1674006051740,0.010138,21225.0,21224.0,1.6242536]
[1674006052041,0.010138,21225.0,21224.0,1.34306679]
[1674006052504,0.010138,21225.0,21224.0,1.40372924]
[1674006052762,0.010138,21225.0,21224.0,1.45568724]
[1674006053815,0.010138,21225.0,21224.0,1.0430065]
[1674006054083,0.010138,21225.0,21224.0,0.9910485]
[1674006054835,0.0106149,21225.0,21224.0,0.9910485]
[1674006055093,0.085738,21225.0,21224.0,0.9910485]
[1674006056396,0.4076799,21225.0,21224.0,0.9910485]
[1674006056672,0.4076799,21225.0,21224.0,0.9590485]
[1674006056970,0.416203,21225.0,21224.0,0.9600485]
[1674006057513,0.4166799,21225.0,21224.0,0.9600485]
[1674006058516,0.4166799,21225.0,21224.0,0.4888845]
[1674006060368,0.4166799,21225.0,21224.0,0.0177205]
[1674006061415,0.5666799,21225.0,21224.0,0.0177205]
[1674006061680,1.59781969,21225.0,21219.0,0.28118681]
[1674006061957,1.59781969,21225.0,21216.0,0.3378861]
[1674006061958,0.6,21222.0,21216.0,0.11262045]
[1674006062244,0.6,21222.0,21215.0,0.12055285]
[1674006062245,1.84520921,21221.0,21215.0,0.12055285]
[1674006062738,1.18493241,21220.0,21215.0,0.0079324]
[1674006062742,0.62507703,21220.0,21215.0,0.14334425]
[1674006062998,0.62507703,21220.0,21215.0,0.4792844]
[1674006062999,0.0756,21216.0,21215.0,0.4792844]
[1674006063257,0.397065,21216.0,21215.0,0.4792844]
[1674006064044,0.397065,21216.0,21215.0,0.4862844]
[1674006064045,0.321465,21216.0,21215.0,0.4862844]
[1674006064301,0.0756,21217.0,21215.0,0.4792844]
[1674006064558,0.321465,21216.0,21215.0,0.5112844]
[1674006064873,0.0756,21217.0,21215.0,0.5112844]
[1674006065155,0.321465,21216.0,21215.0,0.5112844]
[1674006065412,0.0756,21217.0,21215.0,0.4792844]
[1674006065669,0.321465,21216.0,21215.0,0.5272844]
[1674006065923,0.3219419,21216.0,21215.0,0.5272844]
[1674006066439,0.0796,21217.0,21215.0,0.5272844]
[1674006066955,0.3219419,21216.0,21215.0,0.5272844]
[1674006067218,0.321465,21216.0,21215.0,0.4792844]
[1674006067511,0.004,21216.0,21215.0,0.95180631]
[1674006067780,0.004,21216.0,21215.0,0.9506484]
[1674006068070,0.0004769,21216.0,21215.0,0.9986484]
[1674006068330,0.0004769,21216.0,21215.0,1.0466484]
[1674006068331,0.0044769,21216.0,21215.0,1.0466484]
[1674006068580,0.0044769,21216.0,21215.0,0.9506484]
[1674006068581,0.0004769,21216.0,21215.0,0.9506484]
[1674006069667,0.0756,21217.0,21215.0,0.9506484]
[1674006070187,0.325465,21216.0,21215.0,0.9986484]
[1674006070463,0.400365,21216.0,21215.0,0.0079324]
[1674006070719,0.400365,21216.0,21215.0,0.0559324]
[1674006070984,0.396365,21216.0,21215.0,0.0079324]
[1674006071258,0.400365,21216.0,21215.0,0.0559324]
[1674006071532,0.396365,21216.0,21215.0,0.0079324]
[1674006071802,0.396365,21216.0,21215.0,0.03275102]
[1674006072056,0.514865,21216.0,21215.0,0.03675102]
[1674006072576,0.514865,21216.0,21214.0,0.75963396]
[1674006072857,0.397065,21215.0,21214.0,0.75963396]
[1674006073333,0.3975419,21215.0,21214.0,0.75963396]
[1674006073876,0.3975419,21215.0,21214.0,0.76363396]
[1674006074137,0.3975419,21215.0,21214.0,0.75963396]
[1674006074377,0.4445419,21215.0,21214.0,0.76363396]
[1674006074646,0.444065,21215.0,21214.0,0.76363396]
[1674006075176,0.368465,21215.0,21214.0,0.76363396]
[1674006075448,0.047,21215.0,21214.0,1.06363396]
[1674006075738,0.047,21215.0,21214.0,0.76363396]
[1674006075957,0.047,21215.0,21214.0,1.06363396]
[1674006076236,0.047,21215.0,21214.0,0.76363396]
[1674006076477,0.003,21215.0,21214.0,0.80663396]
[1674006076750,0.003,21215.0,21214.0,1.10663396]
[1674006077019,0.003,21215.0,21214.0,0.80663396]
[1674006078536,0.0034769,21215.0,21214.0,0.80663396]
[1674006079049,0.003,21215.0,21214.0,0.80663396]
[1674006079316,0.003,21215.0,21214.0,1.10663396]
[1674006081417,0.003,21215.0,21214.0,1.15864496]
[1674006082464,0.003,21215.0,21214.0,1.10784595]
[1674006082717,0.003,21215.0,21214.0,1.15985695]
[1674006083989,0.003,21215.0,21214.0,1.10663396]
[1674006086035,0.003,21215.0,21214.0,1.15864496]
[1674006087348,0.38410076,21222.0,21215.0,0.00216111]
[1674006087594,0.38410076,21222.0,21217.0,1.413951]
[1674006087850,0.38410076,21222.0,21218.0,0.48740185]
[1674006088116,0.38410076,21222.0,21219.0,1.07801443]
[1674006088380,0.38410076,21222.0,21219.0,1.54928543]
[1674006089137,0.38410076,21222.0,21220.0,0.3]
[1674006089399,0.38410076,21222.0,21221.0,1.465672]
[1674006089400,0.38810076,21222.0,21221.0,1.465672]
[1674006089672,0.38810076,21222.0,21221.0,1.465668]
[1674006089953,0.004,21222.0,21221.0,1.713693]
[1674006090217,0.00982339,21224.0,21221.0,1.713693]
[1674006090473,0.48357421,21224.0,21221.0,1.413693]
[1674006090983,0.48357421,21224.0,21221.0,1.502693]
[1674006091194,0.48357421,21224.0,21221.0,1.413693]
[1674006091501,0.48357421,21224.0,21221.0,1.440693]
[1674006091762,0.48405111,21224.0,21221.0,1.413693]
[1674006092024,0.48405111,21224.0,21221.0,1.502693]
[1674006092814,0.48405111,21224.0,21221.0,1.16287237]
[1674006092815,0.48357421,21224.0,21221.0,1.16287237]
[1674006093067,0.48357421,21224.0,21221.0,1.18987237]
[1674006093569,0.48357421,21224.0,21221.0,0.69164137]
[1674006093818,0.48357421,21224.0,21221.0,0.78064137]
[1674006094072,0.48357421,21224.0,21221.0,0.69164137]
[1674006094326,0.48357421,21224.0,21221.0,0.71864137]
[1674006094581,0.48357421,21224.0,21221.0,0.69164137]
[1674006094849,0.48357421,21224.0,21221.0,0.78064137]
[1674006095159,0.00982339,21224.0,21221.0,0.82705322]
[1674006095380,0.00982339,21224.0,21222.0,0.3]
[1674006095928,0.00982339,21224.0,21223.0,1.41361842]
[1674006097558,0.00982339,21224.0,21223.0,1.41361842]
[1674006097816,0.01382339,21224.0,21223.0,1.41561842]
[1674006098075,0.00982339,21224.0,21223.0,1.41361842]
[1674006099130,0.00982339,21224.0,21223.0,1.71361842]
[1674006099884,0.00982339,21224.0,21223.0,1.74061842]
[1674006100413,0.00982339,21224.0,21223.0,1.79258642]
[1674006100940,0.00982339,21224.0,21223.0,1.76558642]
[1674006101205,0.00982339,21224.0,21223.0,1.91558642]
[1674006101462,0.00982339,21224.0,21223.0,1.94258642]
[1674006101944,0.00982339,21224.0,21223.0,1.79258642]
[1674006102256,0.00982339,21224.0,21223.0,1.91558642]
[1674006102539,0.00982339,21224.0,21223.0,2.00458642]
[1674006102786,0.00982339,21224.0,21223.0,1.91558642]
[1674006103054,0.00982339,21224.0,21223.0,1.85358642]
[1674006104646,0.00982339,21224.0,21223.0,1.92838642]
[1674006104912,0.00982339,21224.0,21223.0,2.46874467]
[1674006105176,0.00982339,21224.0,21223.0,2.48271603]
[1674006105431,0.00982339,21224.0,21223.0,2.39471603]
[1674006105690,0.00982339,21224.0,21223.0,2.37009558]
[1674006106483,0.00982339,21224.0,21223.0,2.28209558]
[1674006106712,0.00982339,21224.0,21223.0,2.00398642]
[1674006106964,0.00982339,21224.0,21223.0,2.15398642]
[1674006107481,0.00982339,21224.0,21223.0,2.00398642]
[1674006108003,0.00982339,21224.0,21223.0,1.85358642]
[1674006108303,0.00982339,21224.0,21223.0,1.55358642]
[1674006109293,0.00982339,21224.0,21223.0,1.553526]
[1674006109592,0.00982339,21224.0,21223.0,1.501558]
[1674006109820,0.00982339,21224.0,21223.0,1.413558]
[1674006110078,0.33228839,21224.0,21223.0,1.023372]
[1674006110355,0.33176529,21224.0,21223.0,0.942372]
[1674006110561,0.33228839,21224.0,21223.0,1.023372]
[1674006111390,0.40686529,21224.0,21221.0,0.942441]
[1674006111671,0.08540029,21224.0,21223.0,0.032]
[1674006111933,0.40686529,21224.0,21223.0,0.032]
[1674006112473,0.40686529,21224.0,21222.0,0.942396]
[1674006112729,0.321465,21223.0,21222.0,0.942396]
[1674006113766,0.321465,21223.0,21222.0,0.47119]
[1674006114020,0.321465,21223.0,21222.0,0.47172907]
[1674006114305,0.85302972,21223.0,21221.0,0.471214]
[1674006114543,0.396265,21222.0,21221.0,0.471214]
[1674006115339,0.0748,21222.0,21221.0,0.471214]
[1674006116334,0.0748,21222.0,21221.0,0.949445]
[1674006116582,0.0858,21222.0,21221.0,0.949445]
[1674006116855,0.01091857,21222.0,21221.0,0.949445]
[1674006117377,0.01091857,21222.0,21221.0,1.301419]
[1674006118138,0.01091857,21222.0,21221.0,1.451419]
[1674006118373,0.01091857,21222.0,21221.0,1.30228846]
[1674006118885,0.00982339,21224.0,21221.0,1.29528846]
[1674006119162,0.00982339,21224.0,21222.0,0.3]
[1674006119439,0.00982339,21224.0,21223.0,1.465524]
[1674006119671,0.00982339,21224.0,21223.0,1.765524]
[1674006120197,0.01082339,21224.0,21223.0,1.765524]
[1674006120703,0.01082339,21224.0,21223.0,2.23671]
[1674006121260,0.00982339,21224.0,21223.0,2.23671]
[1674006121510,0.01082339,21224.0,21223.0,2.31971]
[1674006122030,0.00982339,21224.0,21223.0,2.23671]
[1674006122296,0.01082339,21224.0,21223.0,2.31971]
[1674006122561,0.00982339,21224.0,21223.0,2.23671]
[1674006122842,0.01082339,21224.0,21223.0,2.31971]
[1674006123089,0.00982339,21224.0,21223.0,2.23671]
[1674006124118,0.01082339,21224.0,21223.0,2.31871]
[1674006124410,0.00982339,21224.0,21223.0,2.23671]
[1674006124667,0.01082339,21224.0,21223.0,2.31871]
[1674006124926,0.00982339,21224.0,21223.0,2.23671]
[1674006125211,0.01082339,21224.0,21223.0,2.31871]
[1674006125467,0.01082339,21224.0,21223.0,2.23671]
[1674006125725,0.00982339,21224.0,21223.0,2.266744]
[1674006125995,0.01082339,21224.0,21223.0,2.184744]
[1674006126261,0.01082339,21224.0,21223.0,1.884744]
[1674006127047,0.01082339,21224.0,21223.0,2.266744]
[1674006127048,0.01182339,21224.0,21223.0,2.266744]
[1674006127332,0.00982339,21224.0,21223.0,2.236707]
[1674006127615,0.01082339,21224.0,21223.0,2.318707]
[1674006128129,0.01082339,21224.0,21223.0,2.43132745]
[1674006128133,0.01182339,21224.0,21223.0,2.51332745]
[1674006128403,0.01182339,21224.0,21223.0,3.08467823]
[1674006128694,0.00982339,21224.0,21223.0,3.97558534]
[1674006128956,0.00982339,21224.0,21223.0,3.97558666]
[1674006129218,0.00982339,21224.0,21223.0,2.80805778]
[1674006130810,0.00982339,21224.0,21223.0,2.89005778]
[1674006131081,0.00982339,21224.0,21223.0,2.80805778]
[1674006131341,0.01082339,21224.0,21223.0,2.89005778]
[1674006131601,0.01082339,21224.0,21223.0,3.11533563]
[1674006131862,0.01082339,21224.0,21223.0,3.19093563]
[1674006132113,0.01082339,21224.0,21223.0,4.13317761]
[1674006133181,0.01082339,21224.0,21223.0,4.05757761]
[1674006133451,0.01082339,21224.0,21223.0,4.1326749]
[1674006135759,0.010138,21225.0,21224.0,0.27326265]
[1674006136014,0.010138,21225.0,21224.0,1.62807684]
[1674006136317,0.010138,21225.0,21224.0,1.68003484]
[1674006136592,0.010138,21225.0,21224.0,1.84876552]
[1674006136845,0.010138,21225.0,21224.0,3.57852127]
[1674006137124,0.011138,21225.0,21224.0,3.71784073]
[1674006137384,0.011138,21225.0,21224.0,3.71871008]
[1674006137904,0.011138,21225.0,21224.0,3.94356676]
[1674006138936,0.011138,21225.0,21224.0,4.17914676]
[1674006139200,0.011138,21225.0,21224.0,3.95429008]
[1674006139974,0.011138,21225.0,21224.0,4.17916515]
[1674006140241,0.011138,21225.0,21224.0,3.46480965]
[1674006140533,0.011138,21225.0,21224.0,2.37261965]
[1674006141104,0.011138,21225.0,21224.0,2.14774458]
[1674006141301,0.011138,21225.0,21224.0,1.68929932]
[1674006142090,0.011138,21225.0,21224.0,3.31444044]
[1674006142377,0.011138,21225.0,21224.0,3.78676469]
[1674006142631,0.011138,21225.0,21224.0,4.0784616]
[1674006143441,0.011138,21225.0,21224.0,4.3033506]
[1674006144025,0.01024632,21226.0,21225.0,0.16617159]
[1674006144299,0.01024632,21226.0,21225.0,3.77982531]
[1674006144574,0.01024632,21226.0,21225.0,3.83177831]
[1674006145108,0.01024632,21226.0,21225.0,3.69706693]
[1674006145373,0.01024632,21226.0,21225.0,2.64250918]
[1674006145619,0.01024632,21226.0,21225.0,2.50168959]
[1674006145897,0.01124632,21226.0,21225.0,2.26611959]
[1674006146235,0.01124632,21226.0,21225.0,2.49093918]
[1674006146687,0.01124632,21226.0,21225.0,1.75104611]
[1674006146944,0.01124632,21226.0,21225.0,1.58241578]
[1674006147204,0.01124632,21226.0,21225.0,1.47000859]
[1674006148471,0.01124632,21226.0,21225.0,1.73241578]
[1674006148718,0.01124632,21226.0,21225.0,1.58241578]
[1674006149221,0.01124632,21226.0,21225.0,1.47000859]
[1674006149989,0.01124632,21226.0,21225.0,1.62000859]
[1674006150531,0.01124632,21226.0,21225.0,1.58241578]
[1674006150801,0.01124632,21226.0,21225.0,1.47000859]
[1674006151521,0.01024632,21227.0,21226.0,0.58875368]
[1674006151799,0.01024632,21227.0,21226.0,1.53099368]
[1674006153300,0.01024632,21227.0,21226.0,1.91699368]
[1674006154300,0.01024632,21227.0,21226.0,1.61699368]
[1674006154544,0.01024632,21227.0,21226.0,1.91699368]
[1674006156113,0.01072322,21227.0,21226.0,1.61699368]
[1674006156363,0.01024632,21227.0,21226.0,1.61699368]
[1674006160348,0.01024632,21227.0,21226.0,1.9168924]
[1674006161110,0.01024632,21227.0,21226.0,1.6168924]
[1674006161670,0.01024632,21227.0,21226.0,1.9168924]
[1674006163752,0.01024632,21227.0,21226.0,3.48103373]
[1674006164000,0.01024632,21227.0,21226.0,3.70585332]
[1674006164284,0.01024632,21227.0,21226.0,2.53887788]
[1674006164540,0.01024632,21227.0,21226.0,2.19817441]
[1674006164800,0.01024632,21227.0,21226.0,2.59961125]
[1674006165334,0.01024632,21227.0,21226.0,2.19817441]
[1674006165591,0.01024632,21227.0,21226.0,2.59971501]
[1674006166110,0.01024632,21227.0,21226.0,1.72954408]
[1674006166383,0.01024632,21227.0,21226.0,1.6168924]
[1674006166855,0.01024632,21227.0,21226.0,1.72954408]
[1674006167119,0.01024632,21227.0,21226.0,2.02954408]
[1674006167633,0.01024632,21227.0,21226.0,2.59969191]
[1674006168151,0.01024632,21227.0,21226.0,2.13106158]
[1674006168411,0.01024632,21227.0,21226.0,1.72954408]
[1674006168689,0.01024632,21227.0,21226.0,1.6168924]
[1674006169209,0.01024632,21227.0,21226.0,2.02954408]
[1674006169468,0.01024632,21227.0,21226.0,1.9168924]
[1674006169721,0.01024632,21227.0,21226.0,2.02954408]
[1674006170254,0.01024632,21227.0,21226.0,1.72954408]
[1674006170530,0.01072322,21227.0,21226.0,1.6168924]
[1674006170803,0.12658322,21227.0,21226.0,1.6168924]
[1674006171063,0.44804822,21227.0,21226.0,1.6168924]
[1674006171320,0.33171132,21227.0,21226.0,1.6168924]
[1674006171626,0.40778822,21227.0,21226.0,1.6168924]
[1674006171914,1.53286111,21227.0,21226.0,0.6746524]
[1674006172171,1.45502124,21227.0,21226.0,0.6746524]
[1674006172433,1.99428996,21227.0,21226.0,0.6746524]
[1674006172683,1.77435036,21227.0,21226.0,0.6746524]
[1674006172948,1.60502124,21227.0,21226.0,0.6746524]
[1674006173768,1.49213516,21227.0,21226.0,0.5886524]
[1674006174301,1.50513516,21227.0,21226.0,0.5956524]
[1674006174861,0.88403716,21227.0,21226.0,0.5956524]
[1674006175129,1.35465826,21227.0,21226.0,0.5956524]
[1674006175419,0.34471132,21227.0,21226.0,1.20218425]
[1674006175695,0.02324632,21227.0,21226.0,1.0667724]
[1674006176212,0.09804632,21227.0,21226.0,1.0667724]
[1674006176482,0.09804632,21227.0,21226.0,1.5378924]
[1674006177593,0.09804632,21227.0,21226.0,1.0667724]
[1674006177846,0.41951132,21227.0,21226.0,1.0667724]
[1674006178630,0.41951132,21227.0,21226.0,0.5956524]
[1674006179990,0.91304084,21227.0,21226.0,0.5956524]
[1674006182215,1.38413884,21227.0,21226.0,0.5956524]
[1674006182470,1.37413884,21227.0,21226.0,0.5956524]
[1674006183259,0.90304084,21227.0,21226.0,0.5956524]
[1674006188415,0.40951132,21227.0,21226.0,0.5956524]
[1674006190488,0.40951132,21227.0,21226.0,1.0667724]
[1674006190749,0.01324632,21227.0,21226.0,1.5378924]
[1674006191001,0.01324632,21227.0,21226.0,1.8378924]
[1674006191521,0.01324632,21227.0,21226.0,1.5378924]
[1674006191773,0.01324632,21227.0,21226.0,2.54871208]
[1674006192293,0.00024632,21227.0,21226.0,2.3539604]
[1674006192563,0.00124632,21227.0,21226.0,2.4339604]
[1674006193056,0.00124632,21227.0,21226.0,2.54661208]
[1674006193310,0.00024632,21227.0,21226.0,2.46661208]
[1674006193562,0.00124632,21227.0,21226.0,2.54661208]
[1674006193821,0.00024632,21227.0,21226.0,2.46661208]
[1674006194087,0.00124632,21227.0,21226.0,2.54661208]
[1674006194371,0.00124632,21227.0,21226.0,2.27776506]
[1674006194625,0.00124632,21227.0,21226.0,2.16511338]
[1674006200926,0.00172422,21229.0,21226.0,2.16511338]
[1674006201180,0.00172422,21229.0,21226.0,2.11316538]
[1674006201960,0.00172422,21229.0,21226.0,2.03316538]
[1674006202225,0.00272422,21229.0,21226.0,1.81416538]
[1674006203768,0.00272422,21229.0,21227.0,0.3]
[1674006204035,0.00272422,21229.0,21228.0,1.465164]
[1674006204266,0.00272422,21229.0,21228.0,1.713225]
[1674006204780,0.00272422,21229.0,21228.0,1.765162]
[1674006205861,0.00172422,21229.0,21228.0,1.765162]
[1674006206115,0.00172422,21229.0,21228.0,1.846162]
[1674006206116,0.00272422,21229.0,21228.0,1.846162]
[1674006206394,0.00272422,21229.0,21228.0,2.317237]
[1674006206665,0.00172422,21229.0,21228.0,2.236237]
[1674006206919,0.00272422,21229.0,21228.0,2.317237]
[1674006207173,0.00172422,21229.0,21228.0,2.236237]
[1674006207661,0.00272422,21229.0,21228.0,2.317237]
[1674006208417,0.00272422,21229.0,21228.0,2.31810618]
[1674006208659,0.00172422,21229.0,21228.0,2.23710618]
[1674006208908,0.00272422,21229.0,21228.0,2.31810618]
[1674006209162,0.00172422,21229.0,21228.0,2.23710618]
[1674006209423,0.00272422,21229.0,21228.0,2.31810618]
[1674006209675,0.00272422,21229.0,21228.0,2.01810618]